Workbook

Sheet PART C5.1
A1: PART C5.1: Schedule of Prices
A3: For Detail Technical Specifications and Scope of Work refer to PART C3.3
A4: All items measured in the "Schedule of Prices" and to be priced as accurate possible.
A5: Rev 0 | B5: First issue for tender purposes
A6: Rev 1 | B6: Changes after Design Review
A7: Rev 2 | B7: Quantity changes based on Sample Soil Nomination and additional pay items
A8: Rev 3 | B8: Formulas corrected
A9: Rev 4 | B9: Deviation @ Aliwal North Estimated and date corrected
A10: Construction Start Date: | E10: 2024-09-03
A11: Construction Completion Date: | E11: 2025-12-30
C12: TOTALS
A13: ITEM | B13: ACTIVITY DESCRIPTION | C13: UNIT | D13: QTY | E13: RATE PRICE | F13: TENDER PRICE
A14: Activity Stage 1: Preliminary & General, Environmental, Health & Safety and Site establishment
A15: 1.1 | B15: Preliminary & General cost:- PART C3.3: Activity Stage 1.1
A16: 1.1.1 | B16: Fixed charge items:
B17: a) Management & Programme for the Works (Appointment of a Supervisor) (Compulsory to list the name of supervisor for the duration of contract in Part 3, paragraph 4) List name of appointed Site Supervisor below: | C17: sum | D17: 1 | E17: 0 | F17: =D17*E17 -> 0
B18: NAME: SURNAME: | F18: 0
B19: CONTACT No: | F19: 0
B20: b) Contractual requirements i.e., insurance’s, statutory contributions, etc. | C20: sum | D20: 1 | E20: 0 | F20: =D20*E20 -> 0
B21: c) Material Surety Bond | C21: sum | D21: 1 | E21: 0 | F21: =D21*E21 -> 0
B22: d) Off-site staff & overhead costs | C22: sum | D22: 1 | E22: 0 | F22: 0
B23: e) Additional provision to conduct planned outages inclusive of all transport, labour and material (To be re-measured at completion) | C23: ea | D23: 1 | E23: 0 | F23: 0
B24: f) Provision of all Standards and Specifications | C24: sum | D24: 1 | E24: 0 | F24: 0
B25: g) Completion and submission of the "Expanded Public Works Programme Report" | C25: sum | D25: 1 | E25: 0 | F25: 0
A26: Sub-total | E26: =A16 -> 1.1.1 | F26: =SUM(F17:F25) -> 0
A27: 1.1.2 | B27: Time related items:
B28: a) Outages | C28: w/ends | D28: 4 | E28: 0 | F28: =D28*E28 -> 0
B29: Contractor must allow for work being done during outages on weekends (To be re-measured at completion) | F29: 0
B30: b) FINAL COMMISSIONING OUTAGE (PART C3.1 Section 1.4.5 | C30: sum | D30: 1 | E30: 0 | F30: 0
B31: Contractor must allow for work being done during final commissioning outage which includes 3 spans to be completed where the new line crosses the existing 66kV line and the installation of the terminal structures and completion of the clossing spans all done simultaneusly on a single outage over a weekend (Rate to include all additional resources and plant required to complete the work in the shortes possible time) | F31: 0
B32: c) Programme and Planning | C32: wks | D32: =ROUNDUP(($E$11-$E$10)/7,0) -> 69 | E32: 0 | F32: 0
B33: Contractor must allow for the preparation of a detailed programme reflecting the outage dates | F33: 0
B34: d) Special transport of workers to, at and from site in terms of the OHS Act Regulations (If tendered for provide Registration No of Vehicle that will be used. If hired provide copy of rental contract as part of returnables to the Employer) | C34: wks | D34: =D32 -> 69 | E34: 0 | F34: 0
B35: Vehicle type: | F35: 0
B36: Registration no: | F36: 0
B37: e) Other daily rate time related charges, required for the successful completion of this project | C37: days | D37: 1 | E37: 0 | F37: 0
B38: Specify: | F38: 0
A39: Sub-total | E39: =A27 -> 1.1.2 | F39: =SUM(F28:F38) -> 0
A40: SUB-TOTAL | E40: =A15 -> 1.1 | F40: =SUM(F26,F39) -> 0
A41: 1.2 | B41: Environmental requirements:- PART C3.3: Activity Stage 1.2
A42: 1.2.1 | B42: Time related items:
B43: a) Compliance with environmental legislation as well as environmental specifications included in or referred to in this document | C43: wks | D43: =ROUNDUP(($E$11-$E$10)/7,0) -> 69 | E43: 0 | F43: =D43*E43 -> 0
B44: b) Allowance for environmental risks and reporting of environmental incidents | C44: wks | D44: =ROUNDUP(($E$11-$E$10)/7,0) -> 69 | E44: 0 | F44: 0
B45: c) Waste Disposal | C45: wks | D45: =ROUNDUP(($E$11-$E$10)/7,0) -> 69 | E45: 0 | F45: 0
B46: d) Compile, use and maintain the "Environmental Incident Register" on site | C46: wks | D46: =ROUNDUP(($E$11-$E$10)/7,0) -> 69 | E46: 0 | F46: 0
A47: Sub-total | E47: =A42 -> 1.2.1 | F47: =SUM(F43:F46) -> 0
A48: SUB-TOTAL | E48: =A41 -> 1.2 | F48: =SUM(F47) -> 0
A49: 1.3 | B49: Health and Safety requirements (34-333):- PART C3.3: Activity Stage 1.3
A50: 1.3.1 | B50: Fixed charge items:
B51: a) Complete project specific "Health and Safety Plan" to be submitted by the Contractor | C51: sum | D51: 1 | E51: 0 | F51: =D51*E51 -> 0
A52: Sub-total | E52: =A50 -> 1.3.1 | F52: =SUM(F51:F51) -> 0
A53: 1.3.2 | B53: Time related items:
B54: a) Personal Protective Equipment:
B55: - Hard hats | C55: wks | D55: =ROUNDUP(($E$11-$E$10)/7,0) -> 69 | E55: 0 | F55: =D55*E55 -> 0
B56: - Safety goggles or shields | C56: wks | D56: =D55 -> 69 | E56: 0 | F56: 0
B57: - Gloves | C57: wks | D57: =D56 -> 69 | E57: 0 | F57: 0
B58: - Safety shoes | C58: wks | D58: 69 | E58: 0 | F58: 0
B59: - Overalls | C59: wks | D59: 69 | E59: 0 | F59: 0
B60: - Fall Arrest System | C60: wks | D60: 69 | E60: 0 | F60: 0
B61: - Any additional PPE required | C61: wks | D61: 69 | E61: 0 | F61: 0
B62: Specify: | F62: 0
B63: b) Testing and calibration of compression and pulling equipment | C63: wks | D63: =D61 -> 69 | E63: 0 | F63: 0
B64: c) Compliance with Safety Plan & Safety File | C64: wks | D64: 69 | E64: 0 | F64: 0
B65: d) Statutory Health & Safety appointments in terms of the OHS Act and Regulations | C65: wks | D65: 69 | E65: 0 | F65: 0
B66: e) Health & Safety Training | C66: wks | D66: 69 | E66: 0 | F66: 0
B67: f) First Aid | C67: wks | D67: 69 | E67: 0 | F67: 0
B68: g) Compile, use and maintain a detailed "Construction Method Statements" for all specified activities to be executed on site | C68: wks | D68: 69 | E68: 0 | F68: 0
B69: h) Other Health and Safety related items deemed necessary to comply to OHS Act, Regulations and Eskom Safety specifications | C69: wks | D69: =D68 -> 69 | E69: 0 | F69: 0
B70: i) Other Health and Safety related items and costs deemed necessary to comply to COVID-19 Related Requirements from OHS Act, Regulations and Eskom Safety specifications | C70: wks | D70: =D69 -> 69 | E70: 0 | F70: 0
B71: j) Compile, use and maintain the "Health and Safety Incident Register" on site | C71: wks | D71: =D69 -> 69 | E71: 0 | F71: 0
A72: Sub-total | E72: =A53 -> 1.3.2 | F72: =SUM(F54:F71) -> 0
A73: SUB-TOTAL | E73: =A49 -> 1.3 | F73: =SUM(F52,F72) -> 0
A74: 1.4 | B74: Quality Control Requirements:- PART C3.3: Activity Stage 1.4
A75: 1.4.1 | B75: Ensure compliance with the Employer’s Specifications and Standards. | C75: wks | D75: =D71 -> 69 | E75: 0 | F75: =D75*E75 -> 0
A76: 1.4.2 | B76: Implementation of an approved Quality Control System as agreed apon with the Project Engineer | C76: wks | D76: =D75 -> 69 | E76: 0 | F76: 0
A77: SUB-TOTAL | E77: =A74 -> 1.4 | F77: =SUM(F75:F76) -> 0
A78: 1.5 | B78: Site establishment:- PART C3.3: Activity Stage 1.5
A79: 1.5.1 | B79: Fixed charged items:
B80: a) Site Office (Establish) | C80: sum | D80: 1 | E80: 0 | F80: =D80*E80 -> 0
B81: b) Contractor’s yard fencing (Establish) | C81: sum | D81: 1 | E81: 0 | F81: 0
B82: c) Site Stores ( (Establish) for safe keeping of the materials) | C82: sum | D82: 1 | E82: 0 | F82: 0
B83: d) Accommodation for Contractor's employees (Establish) | C83: sum | D83: 1 | E83: 0 | F83: 0
B84: e) Mess & Ablution facilities for Contractor's employees (Establish) | C84: sum | D84: 1 | E84: 0 | F84: 0
B85: f) Contractor's Plant, Equipment & Tools (Establish) | C85: sum | D85: 1 | E85: 0 | F85: 0
B86: g) All Sanitary facilities (Establish) | C86: sum | D86: 1 | E86: 0 | F86: 0
B87: h) Waste disposal facilities (Establish) | C87: sum | D87: 1 | E87: 0 | F87: 0
B88: i) Domestic water supplies (Establish) | C88: sum | D88: 1 | E88: 0 | F88: 0
B89: j) Electricity supplies (Establish) | C89: sum | D89: 1 | E89: 0 | F89: 0
B90: k) Communications (telephones) (Establish) | C90: sum | D90: 1 | E90: 0 | F90: 0
B91: l) Site Supervision | C91: sum | D91: 1 | E91: 0 | F91: 0
B92: m) Site Security (24/7) | C92: sum | D92: 1 | E92: 0 | F92: 0
B93: n) All unforeseen items deemed necessary by the Contractor for the successful establishing of the construction site (Item subjected to re-measurement) | C93: sum | D93: 1 | E93: 0 | F93: 0
B94: Specify: | F94: 0
A95: Sub-total | E95: =A79 -> 1.5.1 | F95: =SUM(F80:F94) -> 0
A96: 1.5.2 | B96: Time related items:
B97: a) Site Office (Use & Maintain) | C97: wks | D97: =D32 -> 69 | E97: 0 | F97: =D97*E97 -> 0
B98: b) Contractor’s yard fencing (Use & Maintain) | C98: wks | D98: =D97 -> 69 | E98: 0 | F98: 0
B99: c) Site Stores ( (Use & Maintain) for safe keeping of the materials) | C99: wks | D99: =D98 -> 69 | E99: 0 | F99: 0
B100: d) Accommodation for Contractor's employees (Use & Maintain) | C100: wks | D100: 69 | E100: 0 | F100: 0
B101: e) Mess & Ablution facilities for Contractor's employees (Use & Maintain) | C101: wks | D101: 69 | E101: 0 | F101: 0
B102: f) Contractor's Plant, Equipment & Tools (Use & Maintain) | C102: wks | D102: 69 | E102: 0 | F102: 0
B103: g) All Sanitary facilities Use & Maintain) | C103: wks | D103: 69 | E103: 0 | F103: 0
B104: h) Waste disposal facilities (Use & Maintain) | C104: wks | D104: 69 | E104: 0 | F104: 0
B105: i) Domestic water supplies (Use & Maintain) | C105: wks | D105: 69 | E105: 0 | F105: 0
B106: j) Electricity supplies (Use & Maintain) | C106: wks | D106: 69 | E106: 0 | F106: 0
B107: k) Communications (telephones) (Use & Maintain) | C107: wks | D107: 69 | E107: 0 | F107: 0
B108: l) Site Supervision | C108: wks | D108: 69 | E108: 0 | F108: 0
B109: m) Site Security (24/7) | C109: wks | D109: =D108 -> 69 | E109: 0 | F109: 0
B110: n) Any unforeseen items deemed necessary by the Contractor for the successful establishing of the construction site (Item subjected to re-measurement) | C110: wks | D110: =D109 -> 69 | E110: 0 | F110: 0
B111: Specify: | F111: 0
A112: Sub-total | E112: =A96 -> 1.5.2 | F112: =SUM(F97:F111) -> 0
A113: SUB-TOTAL | E113: =A78 -> 1.5 | F113: =SUM(F112,F95) -> 0
A114: TOTAL Activity Stage 1 CARRIED FORWARD TO SUMMARY | F114: =SUM(F40,F48,F73,F113,F77) -> 0
C115: TOTALS
A116: ITEM | B116: ACTIVITY DESCRIPTION | C116: UNIT | D116: QTY | E116: RATE PRICE | F116: TENDER PRICE
A117: Activity Stage 2: Survey activities
A118: 2.1 | B118: Pegging of line route, structure setting-out & stays positions:- PART C3.3: Activity Stage 2.1
A119: 2.1.1 | B119: Verification of all as-staked structure and structure stay positions using pegging drawings and lat/long positions provided (Per structure). | C119: ea | D119: =158+3 -> 161 | E119: 0 | F119: =D119*E119 -> 0
A120: 2.1.2 | B120: 300 x 300 x 300mm deep excavation around Dia 20mm steel peg survey beacon. Casting, compacting and curing of 0.04m3 20MPa mass concrete around survey beacon (Only at H-pole/Lattice structure bends) | C120: ea | D120: 1 | E120: 0 | F120: =D120*E120 -> 0
A121: 2.1.3 | B121: Placing of Structure position labelling at each pegged structure position with steel, wooden, PVC tubing or steel dropper ±1,5m long and painted RED/WHITE or with a RED/WHITE fabric attached to it complete with tag indicating structure number and structure type as per PLSCADD profile. | C121: ea | D121: =D119 -> 161 | E121: 0 | F121: 0
A122: SUB-TOTAL | E122: =A118 -> 2.1 | F122: =SUM(F119:F121) -> 0
A123: 2.2 | B123: Marking of servitude and access gates:- PART C3.3: Activity Stage 2.2
A124: 2.2.1 | B124: Marking of new power line servitude gate centre positions at fences in or outside the servitude, including marking on route plan/coordinates (To be negotiated with Landowners - Item subjected to re-measurement) | C124: ea | D124: 51 | E124: 0 | F124: =D124*E124 -> 0
A125: 2.2.2 | B125: Identify and mark existing servitude and access gates for refurbishment or replacement, in or outside the servitude, which is required for access, aincluding marking on route plan/coordinates (To be negotiated with Landowners - Item subjected to re-measurement) | C125: ea | D125: 13 | E125: 0 | F125: =D125*E125 -> 0
A126: SUB-TOTAL | E126: =A123 -> 2.2 | F126: =SUM(F124:F125) -> 0
A127: TOTAL Activity Stage 2 CARRIED FORWARD TO SUMMARY | F127: =SUM(F122,F126) -> 0
C128: TOTALS
A129: ITEM | B129: ACTIVITY DESCRIPTION | C129: UNIT | D129: QTY | E129: RATE PRICE | F129: TENDER PRICE
A130: Activity Stage 3: Establish construction access
A131: 3.1 | B131: Supply and transport of new power line servitude gates:- PART C3.3: Activity Stage 3.1
A132: 3.1.1 | B132: Complete Supply and Transport of new 4,5m wide small stock fence servitude gates, dwg: D-FS-12051 Rev. 7 Sht. 1 - 5 (Item subjected to re-measurement) | C132: ea | D132: =SUM(D124:D125)-D133 -> 64 | E132: 0 | F132: =D132*E132 -> 0
A133: 3.1.2 | B133: Complete Supply and Transport of new 4,5m wide game fence servitude gates, dwg: D-FS-13409 Rev. 2 Sht. 1 - 5 (Item subjected to re-measurement) | C133: ea | D133: 0 | E133: 0 | F133: =D133*E133 -> 0
A134: 3.1.3 | B134: Complete Supply and Transport of servitude gate labels (Item subjected to re-measurement) | C134: ea | D134: 64 | E134: 0 | F134: =D134*E134 -> 0
A135: SUB-TOTAL | E135: =A131 -> 3.1 | F135: =SUM(F132:F134) -> 0
A136: 3.2 | B136: Complete refurbishment and replacement of existing power line servitude gates:- PART C3.3: Activity Stage 3.2 (Item subjected to re-measurement)
A137: 3.2.1 | B137: Complete refurbishment of gates inside/outside the power line servitude marked for servitude/access gate according to 3.2.3 a) | C137: ea | D137: 0 | E137: 0 | F137: =D137*E137 -> 0
A138: 3.2.1 | B138: Complete dismantling and removal from site of existing servitude/access gates according to 3.2.3 b) and 3.7.1 a) i) | C138: ea | D138: =D125 -> 13 | E138: 0 | F138: =D138*E138 -> 0
A139: 3.2.2 | B139: Setting-out and complete re-installation of new Standard 4,5m wide small stock fence servitude/access gates, dwg: D-FS-12051 Rev. 6 Sht. 1 - 5 and 3.7.1 a) ii) | C139: ea | D139: =D138 -> 13 | E139: 0 | F139: =D139*E139 -> 0
A140: 3.2.4 | B140: Setting-out and complete re-installation of new Standard 4,5m wide game fence servitude/access gates, dwg: D-FS-13409 Rev. 2 Sht. 1 - 5 and 3.7.1 a) iii) | C140: ea | D140: 0 | E140: 0 | F140: =D140*E140 -> 0
A141: SUB-TOTAL | E141: =A136 -> 3.2 | F141: =SUM(F137:F140) -> 0
A142: 3.3 | B142: Complete installation of new power line servitude gates:- PART C3.3: Activity Stage 3.3 (Item subjected to re-measurement)
A143: 3.3.1 | B143: Setting-out and complete installation of new Standard 4,5m wide small stock fence gates in fences without any servitude gates, dwg: D-FS-12051 Sht. 1 - 5 | C143: ea | D143: =D132-D138 -> 51 | E143: 0 | F143: =D143*E143 -> 0
A144: 3.3.2 | B144: Setting-out and complete installation of new Standard 4,5m wide game fence gates in fences without any servitude gates, dwg: D-FS-13409 Rev. 2 Sht. 1 - 5 | C144: ea | D144: 0 | E144: 0 | F144: =D144*E144 -> 0
A145: 3.3.3 | B145: Complete installation of all servitude gate labels, including labels on existing, refurbished, replaced and new servitude gates (Item subjected to re-measurement) | C145: ea | D145: =D134 -> 64 | E145: 0 | F145: =D145*E145 -> 0
A146: SUB-TOTAL | E146: =A142 -> 3.3 | F146: =SUM(F143:F145) -> 0
A147: 3.4 | B147: Complete establishment of proper construction access:- PART C3.3: Activity Stage 3.4 (Item subjected to re-measurement)
A148: 3.4.1 | B148: Establishment of construction access to all structure sites through the use of private roads and creating single tracks along clear ground:
B149: a) Use and maintenance of private access roads for construction purposes, including the establishment and maintenance of construction notice boards & sign posts at all private access roads according to 3.4.3 to 3.4.6 | C149: km | D149: =0.88+0.58+0.05+0.23+1.6+0.36+0.19+0.22+0.21+4.9+1.79+1.4+0.38+0.4+0.54 -> 13.73 | E149: 0 | F149: =D149*E149 -> 0
B150: b) Establishment and maintenance of construction notice boards & sign posts at all private access roads according to 3.4.4 | C150: set | D150: 15 | E150: 0 | F150: =D150*E150 -> 0
B151: c) Establishment, use and maintenance of construction access on the power line servitude according to 3.4.8. | C151: km | D151: =ROUNDUP(0.47+1.1+1.6+0.43+10.23+1+2.3+1.6+1.48+3.02+4.3+4.261+4.07+2.43,0) -> 39 | E151: 0 | F151: =D151*E151 -> 0
A152: Sub-total | E152: =A148 -> 3.4.1 | F152: =SUM(F149:F151) -> 0
A153: SUB-TOTAL | E153: =A147 -> 3.4 | F153: =F152 -> 0
A154: 3.5 | B154: Bush clearing and cutting of trees:- PART C3.3: Activity Stage 3.5 (Item subjected to re-measurement)
A155: 3.5.1 | B155: Locating and mark all endangered tree positions, where permits for cutting are required | C155: ea | D155: 0 | E155: 0 | F155: =D155*E155 -> 0
A156: 3.5.2 | B156: Obtaining of special permits for the cutting of endangered trees and shrubs | C156: sum | D156: 0 | E156: 0 | F156: =D156*E156 -> 0
A157: 3.5.3 | B157: Cut and chemically treat larger trees with trunk diameters 250-500mm - Tree trunk and branches to be cut in pieces not exceeding 3,0m in length | C157: ea | D157: 10 | E157: 0 | F157: 0
A158: 3.5.4 | B158: Cut and chemically treat large trees with trunk diameters 500-750mm - Tree trunk and branches to be cut in pieces not exceeding 3,0m in length | C158: ea | D158: 10 | E158: 0 | F158: 0
A159: 3.5.5 | B159: Cut and chemically treat large trees with trunk diameters 750-1250mm - Tree trunk and branches to be cut in pieces not exceeding 3,0m in length | C159: ea | D159: 6 | E159: 0 | F159: 0
A160: 3.5.6 | B160: Replacement of felled trees at allocated positions, where required | C160: ea | D160: =SUM(D157:D159)*2 -> 52 | E160: 0 | F160: 0
A161: 3.5.7 | B161: Cut and chemically treat scattered trees, bush & shrubs | C161: m2 | D161: =1230*15 -> 18450 | E161: 0 | F161: 0
A162: 3.5.8 | B162: Cut and chemically treat dense trees, bush & shrubs | C162: m2 | D162: =90*15 -> 1350 | E162: 0 | F162: 0
A163: SUB-TOTAL | E163: =A154 -> 3.5 | F163: =SUM(F155:F162) -> 0
A164: 3.7 | B164: Complete construction of access, re-vegetation and erosion protection:- PART C3.3: Activity Stage 3.7 (Also see details in Activity stages 3.4 and 3.6 (Item subjected to re-measurement)
A165: 3.7.1 | B165: Temporarily take down and re-instate existing fences | C165: m | D165: 100 | E165: 0 | F165: =D165*E165 -> 0
A166: 3.7.2 | B166: Clear and grub | C166: m2 | D166: =3*700 -> 2100 | E166: 0 | F166: =D166*E166 -> 0
A167: 3.7.3 | B167: Preparation and stripping of Site/removal of topsoil to stated depth, stockpiling, and maintaining | C167: m3 | D167: =3*100*0.1 -> 30 | E167: 0 | F167: =D167*E167 -> 0
A168: 3.7.4 | B168: a) Road-bed preperation and compaction of material to,
B169: i) Minimum of 90% of modified AASHTO maximum density | C169: m3 | D169: =3*100*0.15 -> 45 | E169: 0 | F169: =D169*E169 -> 0
B170: ii) Minimum of 93% of modified AASHTO maximum density | C170: m3 | D170: =0 -> 0 | E170: 0 | F170: =D170*E170 -> 0
A171: 3.7.5 | B171: Cut to fill
B172: a) Compact to 90% of modified AASHTO maximum density | C172: m3 | D172: =3*100*0.4 -> 120 | E172: 0 | F172: =D172*E172 -> 0
A173: 3.7.6 | B173: Extra-over for items 3.7.5 for excavating and breaking down material in,
B174: a) Intermediate excavation | C174: m3 | D174: =D172*0.5 -> 60 | E174: 0 | F174: =D174*E174 -> 0
B175: b) Hard rock excavation | C175: m3 | D175: 0 | E175: 0 | F175: =D175*E175 -> 0
A176: 3.7.7 | B176: Borrow to fill
B177: a) Compact to 90% of modified AASHTO maximum density | C177: m3 | D177: =10*3*0.4 -> 12 | E177: 0 | F177: =D177*E177 -> 0
B178: b) Rock fill, process, and compact | C178: m3 | D178: 0 | E178: 0 | F178: =D178*E178 -> 0
A179: 3.7.8 | B179: Extra-over item/s 3.7.7, 3.7.9 and 3.7.12 for obtaining material,
B180: a) from commercial sources | C180: m3 | D180: =D177 -> 12 | E180: 0 | F180: =D180*E180 -> 0
A181: 3.7.9 | B181: Selected layer compacted to 93% of modified AASHTO maximum density | C181: m3 | D181: 0 | E181: 0 | F181: =D181*E181 -> 0
A182: 3.7.10 | B182: Cut to spoil from
B183: a) Soft excavation | C183: m3 | D183: 0 | E183: 0 | F183: =D183*E183 -> 0
B184: b) Intermediate excavation | C184: m3 | D184: 0 | E184: 0 | F184: =D184*E184 -> 0
B185: c) Hard rock | C185: m3 | D185: 10 | E185: 0 | F185: =D185*E185 -> 0
A186: 3.7.11 | B186: Removal of oversize material | C186: m3 | D186: 0 | E186: 0 | F186: =D186*E186 -> 0
A187: 3.7.12 | B187: Catchwater mounds and channels and mitre banks and channels | C187: m3 | D187: =0.5*0.5*60 -> 15 | E187: 0 | F187: =D187*E187 -> 0
A188: 3.7.13 | B188: Surface Rehabilitation and finishes
B189: a) Cut to spoil of temporary access roads | C189: m3 | D189: 0 | E189: 0 | F189: =D189*E189 -> 0
B190: b) Spreading of material used in temporary access roads | C190: m3 | D190: 0 | E190: 0 | F190: 0
B191: c) Scarifying and ripping of areas where temporary access road have been constructed | C191: m3 | D191: =2000*0.15*3+158*3*3*0.15 -> 1113.3 | E191: 0 | F191: 0
B192: d) Topsoiling Cover | C192: m2 | D192: =158*3*3 -> 1422 | E192: 0 | F192: 0
B193: e) Grass Planting | C193: m2 | D193: =158*3*3+SUM(D253:D256)*1*1 -> 1701 | E193: 0 | F193: 0
B194: f) Hydro Seeding | C194: m2 | D194: 0 | E194: 0 | F194: 0
B195: g) Mulching | C195: m2 | D195: 0 | E195: 0 | F195: 0
B196: h) Use of patented or copyright protected biodegradable erosion control blanket systems | C196: m2 | D196: =5*5*5 -> 125 | E196: 0 | F196: =D196*E196 -> 0
B197: i) Anchored hay bales for erosion control | C197: ea | D197: 20 | E197: 0 | F197: 0
A198: SUB-TOTAL | E198: =A164 -> 3.7 | F198: =SUM(F165:F197) -> 0
A199: TOTAL Activity Stage 3 CARRIED FORWARD TO SUMMARY | F199: =SUM(F135,F141,F146,F153,F163,F198) -> 0
C200: TOTALS
A201: ITEM | B201: ACTIVITY DESCRIPTION | C201: UNIT | D201: QTY | E201: RATE PRICE | F201: TENDER PRICE
... 484 more rows

Sheet Summary-PART C5.2
A1: PART C5.2: Schedule of Prices Summary
A2: SUMMARY
A3: ACTIVITY STAGE | B3: TENDER PRICE
A4: ='PART C5.1'!A14:F14 -> Activity Stage 1: Preliminary & General, Environmental, Health & Safety and Site establishment | B4: ='PART C5.1'!F114 -> 0
A5: ='PART C5.1'!A117:F117 -> Activity Stage 2: Survey activities | B5: ='PART C5.1'!F127 -> 0
A6: ='PART C5.1'!A130:F130 -> Activity Stage 3: Establish construction access | B6: ='PART C5.1'!F199 -> 0
A7: ='PART C5.1'!A202:F202 -> Activity Stage 4: Drilling/Excavating of holes for structure foundations and stays | B7: ='PART C5.1'!F263 -> 0
A8: ='PART C5.1'!A266:F266 -> Activity Stage 5: Installation of power line structures | B8: ='PART C5.1'!F398 -> 0
A9: ='PART C5.1'!A401:F401 -> Activity Stage 6: Power line earthing activities | B9: ='PART C5.1'!F443 -> 0
A10: ='PART C5.1'!A446:F446 -> Activity Stage 7: Dressing of all structures | B10: ='PART C5.1'!F496 -> 0
A11: ='PART C5.1'!A499:F499 -> Activity Stage 8: Stringing activities | B11: ='PART C5.1'!F574 -> 0
A12: ='PART C5.1'!A577:F577 -> Activity Stage 9: OPGW Installation Activities | B12: ='PART C5.1'!F586 -> 0
A13: ='PART C5.1'!A589:F589 -> Activity Stage 10: Power line labelling activities | B13: ='PART C5.1'!F610 -> 0
A14: Activity Stage 11: Dismantling of existing power line | B14: ='PART C5.1'!F657 -> 0
A15: ='PART C5.1'!A660:F660 -> Activity Stage 12: Taking over of the Works and Clearance of site | B15: ='PART C5.1'!F685 -> 0
A16: PROJECT TOTAL (Excluding VAT) | B16: =SUM(B4:B15) -> 0
A17: PROJECT TOTAL (15% VAT) | B17: =B16*0.15 -> 0
A18: PROJECT TOTAL (Including VAT) | B18: =B16+B17 -> 0
